bitfinex-derivatives/quotes_SOLF0:USTF0_20241211
["timestamp","ask_amount","ask_price","bid_price","bid_amount"]
[1733923862205,2.2021,226.93,226.82,26.63710933]
[1733923862406,26.63710933,227.0,226.82,5.36793665]
[1733923862709,26.63710933,227.0,226.78,26.63710933]
[1733923862912,5.31608786,227.07,226.86,26.63710933]
[1733923863304,2.2009,227.05,226.94,2.2019]
[1733923863709,5.31608786,227.07,226.9,26.63710933]
[1733923863913,5.31608786,227.07,226.86,26.63710933]
[1733923864110,26.63710933,227.02,226.82,26.63710933]
[1733923864706,5.31608786,227.07,226.86,26.63710933]
[1733923865014,5.31608786,227.07,226.77,5.23143678]
[1733923865015,5.31608786,227.07,226.9,26.63710933]
[1733923865218,2.2011,227.03,226.91,2.2022]
[1733923865510,26.63710933,227.06,226.86,26.63710933]
[1733923865718,2.2021,226.93,226.86,26.63710933]
[1733923865910,26.63710933,227.02,226.82,26.63710933]
[1733923866210,26.63710933,226.98,226.78,26.63710933]
[1733923866413,26.63710933,226.93,226.43,4.438]
[1733923866612,26.63710933,226.76,226.53,26.63710933]
[1733923866917,26.63710933,226.81,226.61,26.63710933]
[1733923867413,26.63710933,226.85,226.51,5.24952683]
[1733923867612,26.63710933,227.04,226.49,72.47710933]
[1733923867613,26.63710933,226.81,226.57,26.63710933]
[1733923867914,26.63710933,226.81,226.65,5.23811891]
[1733923868509,26.63710933,226.76,226.65,5.23811891]
[1733923868715,26.63710933,226.76,226.53,26.63710933]
[1733923869210,26.63710933,226.76,226.46,1.87093756]
[1733923869211,26.63710933,226.81,226.61,26.63710933]
[1733923869415,2.2038,226.76,226.6,5.32490056]
[1733923869616,26.63710933,226.85,226.64,26.63710933]
[1733923869814,5.22965241,226.8,226.6,31.96200989]
[1733923870015,2.2039,226.75,226.61,2.2051]
[1733923870212,5.22965241,226.8,226.6,31.96200989]
[1733923870418,26.63710933,226.77,226.6,5.32490056]
[1733923870619,26.63710933,226.73,226.54,0.81018603]
[1733923870913,5.22965241,226.8,226.56,26.63710933]
[1733923870914,26.63710933,226.77,226.56,26.63710933]
[1733923871117,2.2049,226.65,226.56,31.83737712]
[1733923871414,26.63710933,226.77,226.56,31.83737712]
[1733923871715,26.63710933,226.73,226.56,5.20026779]
[1733923872114,5.22965241,226.8,226.6,26.63710933]
[1733923872309,5.22965241,226.8,226.64,26.63710933]
[1733923872719,2.2036,226.78,226.66,2.2046]
[1733923872911,26.63710933,226.85,226.68,26.63710933]
[1733923873213,2.2025,226.89,226.75,2.2038]
[1733923873419,26.63710933,226.95,226.76,26.63710933]
[1733923874410,2.2029,226.85,226.77,1.4432]
[1733923874621,26.63710933,226.95,226.77,1.4432]
[1733923875320,26.63710933,226.91,226.77,1.4432]
[1733923875621,26.63710933,226.93,226.77,1.4432]
[1733923876118,5.33313521,226.96,226.77,28.08030933]
[1733923876318,26.63710933,227.01,226.81,26.63710933]
[1733923876619,26.63710933,226.97,226.77,28.08030933]
[1733923877020,26.63710933,226.8,226.74,5.26648424]
[1733923877214,26.63710933,226.75,226.55,2.8461]
[1733923877420,26.63710933,226.66,226.55,2.8461]
[1733923877614,26.63710933,226.62,226.55,2.8461]
[1733923878520,26.63710933,226.66,226.55,2.8461]
[1733923878818,26.63710933,226.66,226.5,5.28347441]
[1733923878819,26.63710933,226.58,226.5,5.28347441]
[1733923879020,26.63710933,226.58,226.46,1.87093756]
[1733923879215,26.63710933,226.52,226.46,1.87093756]
[1733923879620,26.63710933,226.6,226.46,1.87093756]
[1733923879916,26.63710933,226.52,226.46,1.87093756]
[1733923880316,2.2065,226.48,226.46,1.87093756]
[1733923880522,26.63710933,226.52,226.46,1.87093756]
[1733923880720,2.2064,226.49,226.47,0.81056302]
[1733923880916,5.27337488,226.55,226.47,0.81056302]
[1733923881423,26.63710933,226.6,226.47,0.81056302]
[1733923881813,2.2056,226.57,226.47,2.24506302]
[1733923882022,26.63710933,226.6,226.47,2.24506302]
[1733923882417,26.63710933,226.64,226.47,2.24506302]
[1733923882723,26.63710933,226.64,226.48,2.7728]
[1733923882923,26.63710933,226.64,226.49,2.2063]
[1733923883113,26.63710933,226.64,226.48,2.7728]
[1733923883514,26.63710933,226.64,226.51,5.17230545]
[1733923884019,184.475348,226.73,226.51,5.17230545]
[1733923884020,26.63710933,226.68,226.51,5.17230545]
[1733923884523,2.2051,226.62,226.52,2.206]
[1733923884722,2.2051,226.62,226.51,5.17230545]
[1733923884723,31.96883153,226.71,226.51,31.80941478]
[1733923884914,26.63710933,226.65,226.51,5.17230545]
[1733923885117,2.2053,226.6,226.51,5.17230545]
[1733923885313,26.63710933,226.65,226.51,5.17230545]
[1733923885820,2.2051,226.62,226.52,2.206]
[1733923886022,31.96883153,226.71,226.51,5.17230545]
[1733923886326,2.205,226.63,226.51,7.37840545]
[1733923886520,26.63710933,226.66,226.51,5.17230545]
[1733923886921,2.2055,226.58,226.51,5.17230545]
[1733923887121,31.96883153,226.71,226.51,5.17230545]
[1733923887122,26.63710933,226.62,226.51,5.17230545]
[1733923887321,26.63710933,226.66,226.51,5.17230545]
[1733923887628,2.2051,226.62,226.51,7.37840545]
[1733923887823,0.67749,226.67,226.47,28.88217235]
[1733923887824,0.67749,226.67,226.47,0.81056302]
[1733923888019,26.63710933,226.55,226.47,0.81056302]
[1733923888429,26.63710933,226.51,226.47,0.81056302]
[1733923888824,2.2064,226.49,226.47,0.81056302]
[1733923889421,2.2061,226.52,226.47,0.81056302]
[1733923889634,26.63710933,226.59,226.47,0.81056302]
[1733923889835,26.63710933,226.63,226.49,2.2063]
[1733923890137,26.63710933,226.59,226.47,2.13916302]
[1733923890851,26.63710933,226.63,226.47,2.13916302]
[1733923891339,5.25350019,226.64,226.47,28.77627235]
[1733923891544,27.31459933,226.67,226.47,28.77627235]
[1733923891831,5.24396475,226.65,226.47,28.77627235]
[1733923892230,2.205,226.63,226.53,2.2059]
[1733923892428,2.205,226.63,226.47,28.77627235]
[1733923892631,0.67749,226.67,226.51,26.63710933]
[1733923893427,0.67749,226.67,226.55,26.63710933]
[1733923893627,0.67749,226.67,226.56,2.7717]
[1733923893824,0.67749,226.67,226.59,26.63710933]
[1733923894040,0.67749,226.67,226.56,2.7717]
[1733923894041,2.2038,226.76,226.63,26.63710933]
[1733923894233,211.11245733,226.93,226.64,1.44]
[1733923894234,26.63710933,226.83,226.64,1.44]
[1733923894628,2.2037,226.76,226.68,2.2044]
[1733923894932,26.63710933,226.79,226.69,1.3992]
[1733923895131,5.16282584,226.83,226.64,1.44]
[1733923895132,2.2044,226.69,226.64,1.44]
[1733923895328,26.63710933,226.75,226.64,1.44]
[1733923895531,26.63710933,226.71,226.56,1.364]
[1733923895731,26.63710933,226.71,226.5,1.3264]
[1733923895732,26.63710933,226.63,226.5,1.3264]
[1733923895935,26.63710933,226.67,226.5,1.3264]
[1733923896239,26.63710933,226.71,226.5,1.3264]
[1733923896432,26.63710933,226.71,226.53,26.63710933]
[1733923896638,26.63710933,226.75,226.57,26.63710933]
[1733923897338,2.2045,226.68,226.61,2.2051]
[1733923897542,26.63710933,226.79,226.62,1.3992]
[1733923898341,31.79993517,226.83,226.62,1.3992]
[1733923898740,31.79993517,226.83,226.66,26.63710933]
[1733923898946,5.16282584,226.83,226.67,1.3334]
[1733923899134,5.16282584,226.83,226.67,2.6933]
[1733923899738,2.2037,226.76,226.68,2.2044]
[1733923900042,5.16282584,226.83,226.67,2.6933]
[1733923900540,2.2035,226.78,226.71,2.2042]
[1733923900737,5.16282584,226.83,226.67,2.6933]
[1733923901549,26.63710933,226.8,226.67,2.6933]
[1733923901742,2.2041,226.72,226.67,2.6933]
[1733923901954,26.63710933,226.8,226.67,2.6933]
[1733923902546,26.63710933,226.89,226.69,26.63710933]
[1733923902942,5.40068633,226.87,226.69,26.63710933]
[1733923903341,2.2029,226.85,226.69,26.63710933]
[1733923903740,26.63710933,226.89,226.69,26.63710933]
[1733923904041,5.33507596,226.88,226.69,26.63710933]
[1733923904539,26.63710933,226.93,226.73,26.63710933]
[1733923904747,26.63710933,226.93,226.74,1.3264]
[1733923905150,2.2026,226.88,226.74,1.3264]
[1733923905455,5.35200767,226.92,226.74,1.3264]
[1733923906047,2.2027,226.87,226.8,2.2033]
[1733923906352,2.2027,226.87,226.74,1.3264]
[1733923906653,184.475348,227.03,226.77,31.93821081]
[1733923906654,2.2024,226.9,226.77,31.93821081]
[1733923906850,26.63710933,226.97,226.77,31.93821081]
[1733923907345,26.63710933,226.97,226.83,2.203]
[1733923907745,26.63710933,226.97,226.81,2.2031]
[1733923907943,26.63710933,226.89,226.77,5.30110148]
[1733923908344,26.63710933,226.93,226.8,2.2033]
[1733923908547,26.63710933,226.93,226.77,5.30110148]
[1733923908750,2.2027,226.87,226.78,2.2034]
[1733923908951,26.63710933,226.93,226.77,5.30110148]
[1733923909347,5.26089754,226.96,226.79,2.2033]
[1733923909656,5.26089754,226.96,226.77,5.30110148]
[1733923910556,26.63710933,226.98,226.8,26.63710933]
[1733923910750,26.63710933,227.02,226.81,2.6907]
[1733923911053,2.2016,226.99,226.91,2.2022]
[1733923911250,26.63710933,227.02,226.85,1.3849]
[1733923911449,245.9671307,227.14,226.85,1.3849]
[1733923911450,5.29980973,227.05,226.85,1.3849]
[1733923912053,26.63710933,227.02,226.85,1.3849]
[1733923912756,26.63710933,227.02,226.89,5.1623428]
[1733923912952,26.63710933,227.02,226.85,1.3849]
[1733923913451,26.63710933,227.02,226.81,1.3368]
[1733923913649,26.63710933,227.02,226.77,45.86]
[1733923913851,26.63710933,226.98,226.85,5.20834545]
[1733923914051,26.63710933,226.98,226.77,45.86]
[1733923914258,2.2024,226.9,226.82,2.2031]
[1733923914453,26.63710933,226.98,226.77,45.86]
[1733923914750,26.63710933,226.98,226.83,5.22843856]
[1733923914955,26.63710933,227.02,226.85,2.2028]
[1733923915150,26.63710933,227.02,226.83,5.22843856]
[1733923915355,2.2019,226.95,226.87,2.2026]
[1733923915547,2.2019,226.95,226.83,5.22843856]
[1733923915548,26.63710933,227.02,226.84,26.63710933]
[1733923915753,26.63710933,227.02,226.83,5.22843856]
[1733923916159,26.63710933,227.02,226.85,2.2028]
[1733923916456,26.63710933,227.02,226.83,5.22843856]
[1733923916646,26.63710933,227.02,226.77,45.86]
[1733923916850,26.63710933,226.95,226.77,45.86]
[1733923917047,26.63710933,226.91,226.72,30.81550933]
[1733923917753,2.203,226.83,226.76,2.2036]
[1733923918151,4.4025,227.02,226.77,31.84320024]
[1733923918448,26.63710933,226.97,226.77,31.84320024]
[1733923918649,2.2027,226.87,226.75,2.2038]
[1733923918849,31.86594119,226.93,226.72,30.81550933]
[1733923919257,2.2032,226.81,226.75,2.2037]
[1733923919555,31.86594119,226.93,226.72,2.7731]
[1733923919556,26.63710933,226.89,226.72,2.7731]
[1733923919857,26.63710933,226.85,226.67,26.63710933]
[1733923920451,26.63710933,226.85,226.62,2.6693]
[1733923920649,26.63710933,226.81,226.62,2.6693]
[1733923921054,26.63710933,226.77,226.62,2.6693]
[1733923921257,26.63710933,226.77,226.57,26.63710933]
[1733923921561,26.63710933,226.77,226.59,5.24201816]
[1733923921961,26.63710933,226.77,226.57,26.63710933]
[1733923922654,26.63710933,226.77,226.58,5.20231506]
[1733923922858,26.63710933,226.81,226.61,26.63710933]
[1733923923055,2.2035,226.79,226.7,2.2043]
[1733923923357,32.01094674,226.81,226.6,26.63710933]
[1733923923558,2.2038,226.75,226.67,2.2046]
[1733923923758,32.01094674,226.81,226.64,26.63710933]
[1733923924056,0.6809,226.84,226.68,26.63710933]
[1733923924558,5.42518823,226.83,226.68,26.63710933]
[1733923924955,26.63710933,226.89,226.6,26.63710933]
[1733923925160,5.19702116,226.9,226.72,26.63710933]
[1733923925553,5.19702116,226.9,226.73,2.743]
[1733923925757,2.2034,226.8,226.73,2.743]
[1733923925956,26.63710933,226.89,226.73,2.743]
[1733923926158,26.63710933,226.89,226.74,5.2881721]
[1733923926352,2.2036,226.77,226.69,2.2043]
[1733923926556,2.2036,226.77,226.68,26.63710933]
[1733923926557,26.63710933,226.85,226.64,26.63710933]
[1733923927262,26.63710933,226.85,226.61,2.7677]
[1733923927263,26.63710933,226.85,226.68,31.83536452]
[1733923927458,26.63710933,226.85,226.7,2.2043]
[1733923927661,26.63710933,226.85,226.68,31.83536452]
[1733923927861,26.63710933,226.85,226.61,2.7677]
[1733923927862,5.19702116,226.9,226.64,26.63710933]
[1733923928159,26.63710933,226.81,226.64,26.63710933]
[1733923928862,26.63710933,226.81,226.61,2.7677]
[1733923929364,26.63710933,226.81,226.64,5.28267442]
[1733923930261,2.2043,226.7,226.64,5.28267442]
[1733923930564,27.31820933,226.85,226.64,31.91978375]
[1733923930762,27.31820933,226.85,226.68,26.63710933]
[1733923930763,0.6811,226.85,226.68,26.63710933]
[1733923930961,27.31820933,226.85,226.65,1.3641]
[1733923931169,2.204,226.73,226.66,2.2047]
[1733923931461,26.63710933,226.81,226.64,31.91978375]
[1733923931862,26.63710933,226.81,226.64,26.63710933]
[1733923932070,26.63710933,226.81,226.61,2.7677]
[1733923932071,26.63710933,226.81,226.63,5.31496331]
[1733923932264,2.2038,226.75,226.61,1.3734]
[1733923932561,26.63710933,226.81,226.61,6.56079573]
[1733923932958,184.475348,226.83,226.64,26.63710933]
[1733923933269,27.31820933,226.85,226.64,26.63710933]
[1733923933270,5.21227405,226.79,226.64,26.63710933]
[1733923933670,30.77400815,226.84,226.64,26.63710933]
[1733923933872,27.31820933,226.85,226.68,26.63710933]
[1733923934061,0.6811,226.85,226.68,26.63710933]
[1733923934261,26.63710933,226.93,226.72,26.63710933]
[1733923934463,26.63710933,226.93,226.76,26.63710933]
[1733923934767,26.63710933,226.93,226.78,2.2035]
[1733923934971,5.20698079,226.88,226.76,26.63710933]
[1733923935467,31.43945654,226.96,226.76,26.63710933]
[1733923935773,5.30110004,226.92,226.76,26.63710933]
[1733923936168,2.2026,226.88,226.78,2.2035]
[1733923936372,5.30110004,226.92,226.78,2.2035]
[1733923936670,2.2029,226.85,226.79,2.2034]
[1733923936870,5.30110004,226.92,226.76,26.63710933]
[1733923938068,5.30110004,226.92,226.66,1.3758]
[1733923938069,26.63710933,226.99,226.8,26.63710933]
[1733923938273,26.63710933,226.99,226.81,2.2032]
[1733923938471,5.28300846,226.94,226.8,26.63710933]
[1733923939572,0.6818,227.0,226.8,26.63710933]
[1733923939870,103.46192,227.01,226.78,1.3274]
[1733923939871,2.2016,226.98,226.91,2.2022]
[1733923940076,103.46192,227.01,226.88,26.63710933]
[1733923940471,103.46192,227.01,226.9,2.2023]
[1733923940666,103.46192,227.01,226.88,26.63710933]
[1733923941477,2.2016,226.98,226.91,2.2022]
[1733923941670,103.46192,227.01,226.88,26.63710933]
[1733923942069,2.2017,226.98,226.88,26.63710933]
[1733923942269,103.46192,227.01,226.88,26.63710933]
[1733923942874,2.2018,226.96,226.89,2.2024]
[1733923943175,103.46192,227.01,226.91,2.2022]
[1733923943374,103.46192,227.01,226.88,26.63710933]
[1733923944071,103.46192,227.01,226.89,1.408]
[1733923944268,2.2016,226.98,226.92,2.2021]
[1733923944476,103.46192,227.01,226.89,1.408]
[1733923944870,103.46192,227.01,226.88,26.63710933]
[1733923945072,103.46192,227.01,226.83,1.408]
[1733923945977,2.2018,226.96,226.89,2.2024]
[1733923946168,103.46192,227.01,226.83,1.408]
[1733923946572,2.2019,226.95,226.9,2.2023]
[1733923946975,2.2019,226.95,226.83,1.408]
[1733923947177,103.46192,227.01,226.83,1.408]
[1733923947671,2.2018,226.96,226.9,2.2023]
[1733923947872,103.46192,227.01,226.83,1.408]
[1733923948475,5.22269654,227.04,226.83,1.408]
[1733923948672,5.22269654,227.04,226.88,26.63710933]
[1733923949170,430.4424787,227.15,226.83,1.408]
[1733923949171,26.63710933,227.11,226.92,26.63710933]
[1733923949369,26.63710933,227.15,226.96,26.63710933]
[1733923949576,2.2007,227.07,227.02,2.2011]
[1733923950171,5.18432242,227.1,226.96,26.63710933]
[1733923950473,2.2006,227.08,226.96,26.63710933]
[1733923950675,5.18432242,227.1,226.96,26.63710933]
[1733923950875,2.2007,227.07,226.96,26.63710933]
[1733923951472,2.2007,227.07,227.03,2.2011]
[1733923951779,2.2006,227.08,227.03,2.2011]
[1733923951981,29.8548,227.13,227.03,2.2011]
[1733923952176,29.8548,227.13,226.96,26.63710933]
[1733923952177,5.27987548,227.11,227.04,2.201]
[1733923952391,5.27987548,227.11,226.96,26.63710933]
[1733923952904,2.2007,227.08,227.02,2.2012]
[1733923953098,2.2007,227.08,226.96,26.63710933]
[1733923953399,29.8548,227.13,226.96,26.63710933]
[1733923953708,5.34012028,227.12,226.96,26.63710933]
[1733923953898,29.8548,227.13,226.96,26.63710933]
[1733923954088,2.2004,227.1,226.96,26.63710933]
[1733923954682,2.2005,227.09,226.96,26.63710933]
[1733923954982,35.06076785,227.13,226.96,26.63710933]
[1733923955177,35.06076785,227.13,226.94,8.0242]
[1733923955178,35.06076785,227.13,227.0,26.63710933]
[1733923955372,2.2005,227.1,227.05,2.2009]
[1733923955574,2.2005,227.1,227.0,26.63710933]
[1733923955780,35.06076785,227.13,227.0,26.63710933]
[1733923956179,2.2003,227.11,227.0,26.63710933]
[1733923956577,2.2005,227.1,227.06,2.2008]
[1733923956776,29.8548,227.13,227.0,26.63710933]
[1733923957482,29.8548,227.13,227.05,26.63710933]
[1733923957673,29.8548,227.13,227.12,2.2002]
[1733923957880,29.8548,227.13,227.05,26.63710933]
[1733923959278,29.8548,227.13,226.95,4.4038]
[1733923959500,29.8548,227.13,227.05,26.63710933]
[1733923960080,29.8548,227.13,227.11,2.2003]
[1733923960279,29.8548,227.13,227.07,5.31205553]
[1733923961079,29.8548,227.13,227.05,26.63710933]
[1733923961285,29.8548,227.13,227.05,16.37793044]
[1733923961680,29.8548,227.13,227.08,2.2005]
[1733923961986,29.8548,227.13,227.05,16.37793044]
[1733923962583,29.8548,227.13,227.09,2.2005]
[1733923962884,29.8548,227.13,227.05,16.37793044]
[1733923963084,29.8548,227.13,226.95,4.4038]
[1733923963085,29.8548,227.13,227.01,16.37793044]
[1733923963783,29.8548,227.13,227.01,21.70583339]
[1733923964181,2.2006,227.09,227.04,2.201]
[1733923964377,29.8548,227.13,227.01,21.70583339]
[1733923964582,2.2005,227.1,227.04,2.2009]
[1733923964786,29.8548,227.13,227.01,21.70583339]
[1733923965182,29.8548,227.13,227.05,16.37793044]
[1733923965781,32.0549,227.13,227.05,16.37793044]
[1733923966186,32.0549,227.13,227.01,5.32790295]
[1733923966387,32.0549,227.13,227.03,16.37793044]
[1733923966784,2.2003,227.11,227.01,5.32790295]
[1733923966987,29.8548,227.13,227.01,21.70583339]
[1733923968185,29.8548,227.13,227.08,2.2005]
[1733923968784,29.8548,227.13,227.01,21.70583339]
[1733923968785,32.0549,227.13,227.01,21.70583339]
[1733923969096,29.8548,227.13,227.01,21.70583339]
[1733923969295,2.2002,227.12,227.07,2.2007]
[1733923969493,2.2002,227.12,227.01,21.70583339]
[1733923969887,2.2003,227.11,227.07,2.2007]
[1733923970093,29.8548,227.13,227.01,21.70583339]
[1733923970594,2.2003,227.12,227.01,21.70583339]
[1733923970795,29.8548,227.13,227.01,21.70583339]
[1733923971590,2.2003,227.12,227.07,2.2006]
[1733923971791,29.8548,227.13,227.01,21.70583339]
[1733923972199,2.2003,227.12,227.01,21.70583339]
[1733923972393,29.8548,227.13,227.01,21.70583339]
[1733923972992,29.8548,227.13,227.05,16.37793044]
[1733923973191,29.8548,227.13,227.12,2.2002]
[1733923974901,13.0073,227.13,227.12,2.2002]
[1733923978998,13.0073,227.13,227.1,2.2003]
[1733923979405,13.0073,227.13,227.06,22.27793044]
[1733923980001,13.0073,227.13,227.06,16.37793044]
[1733923980304,13.0073,227.13,227.12,2.2002]
[1733923983007,2.1993,227.22,227.17,2.1997]
[1733923983502,2.1994,227.2,227.1,16.37793044]
[1733923983708,1.3083,227.25,227.03,5.9]
[1733923983906,2.1996,227.18,227.08,16.37793044]
[1733923984109,185.783648,227.25,227.08,16.37793044]
[1733923984706,185.783648,227.25,227.12,2.2002]
[1733923984707,2.1997,227.18,227.12,2.2002]
[1733923984909,185.783648,227.25,227.08,16.37793044]
[1733923985207,2.1996,227.19,227.14,2.2]
[1733923985412,184.475348,227.23,227.09,2.20177022]
[1733923985610,2.1995,227.2,227.09,2.20177022]
[1733923985808,184.475348,227.23,227.14,2.2]
[1733923986213,184.475348,227.24,227.1,16.37793044]
[1733923986507,184.475348,227.24,227.09,18.57970066]
[1733923986713,184.475348,227.23,227.09,18.57970066]
[1733923987309,1.3083,227.25,227.16,2.1997]
[1733923987310,2.1994,227.21,227.16,2.1997]
[1733923987807,185.783648,227.25,227.09,18.57970066]
[1733923988011,2.1999,227.16,227.12,2.2002]
[1733923988307,2.1999,227.16,227.09,18.57970066]
[1733923988308,184.475348,227.24,227.09,18.57970066]
[1733923988509,184.475348,227.21,227.1,2.2004]
[1733923988807,184.475348,227.21,227.09,2.20177022]
[1733923989005,2.2002,227.13,227.09,2.20177022]
[1733923989205,184.475348,227.19,227.09,2.20177022]
[1733923989507,2.2001,227.13,227.09,4.40227022]
[1733923989708,2.2001,227.13,227.09,2.20177022]
[1733923989914,184.475348,227.2,227.09,2.20177022]
[1733923990210,16.37793044,227.16,226.97,16.37793044]
[1733923990714,11.80189511,227.15,226.97,16.37793044]
[1733923990903,184.475348,227.14,226.98,2.20283725]
[1733923991106,2.2006,227.08,226.98,2.20283725]
[1733923991306,200.85327844,227.12,226.98,2.20283725]
[1733923992011,184.475348,227.11,226.98,2.20283725]
[1733923992207,2.2004,227.1,227.02,2.2011]
[1733923992412,2.2004,227.1,226.98,2.20283725]
[1733923992615,1.3713,227.13,227.01,16.37793044]
[1733923992810,1.3713,227.13,226.98,2.20283725]
[1733923993109,1.3713,227.13,227.0,16.37793044]
[1733923993311,3.5715,227.13,227.07,2.2007]
[1733923993516,1.3713,227.13,227.04,16.37793044]
[1733923993912,33.62206956,227.0,226.99,7.8415]
[1733923994113,5.64,227.2,226.99,22.01793044]
[1733923994114,1.3612,227.2,226.99,22.01793044]
[1733923994327,1.3612,227.2,227.07,16.37793044]
[1733923994908,2.2,227.14,227.1,2.2004]
[1733923995214,2.2,227.14,227.03,16.37793044]
[1733923995515,1.3612,227.2,227.03,16.37793044]
[1733923995516,1.3629,227.19,227.03,16.37793044]
[1733923995716,1.3629,227.19,227.07,2.2006]
[1733923995717,2.1999,227.16,227.07,2.2006]
[1733923996015,1.3629,227.19,227.03,16.37793044]
[1733923996216,1.3629,227.19,227.1,2.2004]
[1733923996413,1.3629,227.19,227.07,16.37793044]
[1733923996815,1.3629,227.19,227.15,2.1999]
[1733923997113,1.3629,227.19,226.99,10.043]
[1733923997114,1.3612,227.2,227.09,5.4]
[1733923997318,1.3612,227.2,227.08,16.37793044]
[1733923997514,1.3612,227.2,227.1,5.19763694]
[1733923998018,1.3612,227.2,227.11,2.2002]
[1733923998019,2.1998,227.17,227.11,2.2002]
[1733923998221,1.3612,227.2,227.1,5.19763694]
[1733923998520,1.3612,227.2,226.94,5.4]
[1733923998818,1.3612,227.2,227.07,5.18232182]
[1733923999019,1.3612,227.2,227.08,4.2106749]
[1733923999020,11.82997861,227.19,227.08,4.2106749]
[1733923999215,2.2002,227.12,227.08,2.2006]
[1733923999414,1.3612,227.2,227.01,16.37793044]
[1733923999619,11.83264465,227.19,227.06,5.1543321]
[1733923999818,1.3612,227.2,227.07,4.2124487]
[1733924000017,1.3612,227.2,227.08,4.2124487]
[1733924000225,2.2,227.14,227.09,4.2124487]
[1733924000521,1.3612,227.2,227.1,4.2124487]
[1733924000719,1.3612,227.2,227.06,5.1543321]
[1733924000921,2.1999,227.16,227.07,4.2120524]
[1733924001221,1.3612,227.2,227.08,4.21186629]
[1733924001419,1.3612,227.2,227.09,4.21186629]
[1733924001619,1.3612,227.2,227.1,4.21186629]
[1733924001821,1.3612,227.2,227.06,5.1543321]
[1733924002116,1.3612,227.2,227.09,16.37793044]
[1733924002317,1.3612,227.2,227.1,4.21153418]
[1733924002515,1.3612,227.2,227.14,2.2]
[1733924002718,1.3612,227.2,227.07,1.3521]
[1733924002916,1.3612,227.2,227.08,4.20897934]
[1733924003116,1.3612,227.2,227.09,4.20897934]
[1733924003417,3.5607,227.2,227.1,4.20897934]
[1733924003621,3.5607,227.2,227.11,4.20897934]
[1733924003816,1.3612,227.2,227.12,4.20897934]
[1733924004123,1.3612,227.2,227.13,4.20897934]
[1733924004325,1.3612,227.2,227.06,5.1543321]
[1733924004514,1.3612,227.2,227.07,4.20891156]
[1733924004826,2.1996,227.19,227.06,5.1543321]
[1733924005117,0.6785,227.26,227.06,5.1543321]
[1733924005118,189.81082108,227.28,227.07,4.20848212]
[1733924005323,2.1995,227.2,227.15,2.1998]
[1733924005514,2.1995,227.2,227.06,5.1543321]
[1733924005720,2.1995,227.2,227.09,16.37793044]
[1733924005922,2.1997,227.18,227.14,2.2]
[1733924006123,16.37793044,227.23,227.06,5.1543321]
[1733924006321,13.14660105,227.22,227.07,4.21054297]
[1733924006522,11.82960105,227.21,227.11,2.2003]
[1733924006718,11.82960105,227.21,227.06,5.1543321]
[1733924006914,11.82960105,227.21,227.07,4.21154327]
[1733924007117,11.82960105,227.21,227.08,4.21154327]
[1733924007322,11.82960105,227.21,227.06,5.1543321]
[1733924007520,11.82960105,227.21,227.07,4.21185751]
[1733924007718,11.82960105,227.21,227.08,4.21185751]
[1733924007925,2.2,227.15,227.1,2.2003]
[1733924008122,32.02786894,227.22,227.02,16.37793044]
[1733924008322,11.8307084,227.21,227.03,4.21188431]
[1733924008535,11.8307084,227.2,227.04,9.38319825]
[1733924008828,32.02786894,227.22,227.05,4.21188431]
[1733924009029,2.1999,227.15,227.1,2.2004]
[1733924009222,32.02786894,227.22,227.04,5.17131394]
[1733924009418,32.02786894,227.22,227.06,16.37793044]
[1733924009419,2.1996,227.19,227.06,16.37793044]
[1733924009621,2.1996,227.19,227.14,2.2]
[1733924009826,1.317,227.22,227.06,16.37793044]
[1733924010125,1.317,227.22,227.07,4.21127642]
[1733924010327,1.317,227.22,227.08,4.21127642]
[1733924010632,1.317,227.22,227.06,16.37793044]
[1733924010833,1.317,227.22,227.09,4.21202787]
[1733924010834,11.83383997,227.21,227.09,4.21202787]
[1733924011028,2.1997,227.18,227.13,2.2001]
[1733924011226,2.1997,227.18,227.06,16.37793044]
[1733924011427,2.1997,227.18,227.07,4.21175874]
[1733924011628,2.1997,227.18,227.13,2.2]
[1733924012024,2.1997,227.18,227.1,2.2003]
[1733924012327,1.317,227.22,227.11,4.21164636]
[1733924012526,1.317,227.22,227.12,4.21164636]
[1733924012726,2.1997,227.18,227.13,6.41174636]
[1733924012928,1.317,227.22,227.13,2.2001]
[1733924013332,1.317,227.22,227.14,4.21170511]